Workbook

Sheet a1 (hidden)
IN130: 2
EM135: 0

Sheet kezdő
A1: Teszt | B1: Ilona | C1: 27 | D1: lapvédelem="aaa" | E1: =SUBSTITUTE(SUBSTITUTE(SUBSTITUTE(REPT(INDEX(n_1&"száz",1+INT(C1/10^8)),C1>=10^8)&INDEX(n_t&n_1,1+MID(TEXT(C1,"000000000"),3,1),1+MID(TEXT(C1,"000000000"),2,2)/10)&REPT("millió",C1>=10^6)&IF(AND(C1>10^6,MOD(C1,10^6)>0),"-","")&IF(--RIGHT(INT(C1/10^5)),INDEX(n_1&"száz",1+RIGHT(INT(C1/10^5))),"")&INDEX(n_t&n_1,1+RIGHT(INT(C1/10^3)),1+MID(TEXT(C1,"000000000"),5,2)/10)&IF(--MID(TEXT(C1,"000000000"),4,3),IF(AND(C1>2000,MOD(C1,1000)>0),"ezer"&"-","ezer"),"")&IF(--RIGHT(INT(C1/10^2)),INDEX(n_1&"száz",RIGHT(INT(C1/100),1)+1),"")&INDEX(n_t&n_1,RIGHT(C1,1)+1,RIGHT(INT(C1/10),1)+1),"tizen0","tíz"),"huszon0","húsz"),"0","") -> huszonhét
A3: 1 | B3: <= ide a tűzijáték ciklusainak száma

Sheet calc (hidden)
B1: Calculations for the fireworks. Do not edit | AH1: ="C"&AH2&" flower" -> C1 flower | AJ1: ="C"&AJ2&" flower" -> C2 flower | AL1: ="C"&AL2&" flower" -> C3 flower | AN1: ="C"&AN2&" flower" -> C4 flower | AP1: ="C"&AP2&" flower" -> C5 flower | AR1: ="C"&AR2&" flower" -> C6 flower | AT1: ="C"&AT2&" flower" -> C7 flower | AV1: ="C"&AV2&" flower" -> C8 flower | AX1: ="C"&AX2&" flower" -> C9 flower | AZ1: ="C"&AZ2&" flower" -> C10 flower
AH2: 1 | AI2: 1 | AJ2: 2 | AK2: 2 | AL2: 3 | AM2: 3 | AN2: 4 | AO2: 4 | AP2: 5 | AQ2: 5 | AR2: 6 | AS2: 6 | AT2: 7 | AU2: 7 | AV2: 8 | AW2: 8 | AX2: 9 | AY2: 9 | AZ2: 10 | BA2: 10
X4: 0 | Z4: =X4/100 -> 0
R5: Cracker Co-ords | W5: Last point Co-ords | Z5: Current Co-ords | AH5: C1 | AI5: C1 | AJ5: C2 | AK5: C2 | AL5: C3 | AM5: C3 | AN5: C4 | AO5: C4 | AP5: C5 | AQ5: C5 | AR5: C6 | AS5: c6 | AT5: c7 | AU5: c7 | AV5: c8 | AW5: c8 | AX5: c9 | AY5: c9 | AZ5: c10 | BA5: c10
B6: Deg | C6: Radians (θ) | D6: Sin θ | E6: Cos θ | S6: X1 | T6: Y1 | U6: Angle | V6: Max-Height | W6: X2 | X6: Y2 | Y6: Cur Pos | Z6: Cur-height | AA6: Xcur | AB6: Ycur | AC6: maxSize | AD6: curSize % | AE6: curSize | AG6: # | AH6: X1 | AI6: Y1 | AJ6: X2 | AK6: Y2 | AL6: X3 | AM6: Y3 | AN6: X4 | AO6: Y4 | AP6: X5 | AQ6: Y5 | AR6: X6 | AS6: Y6 | AT6: X7 | AU6: Y7 | AV6: X8 | AW6: Y8 | AX6: X9 | AY6: Y9 | AZ6: X10 | BA6: Y10
B7: 0 | C7: =RADIANS(B7) -> 0 | D7: =SIN($C7) -> 0 | E7: =COS($C7) -> 1 | R7: C1 | S7: 60 | T7: 0 | U7: 90 | V7: 100 | W7: =V7*SIN(RADIANS(90-U7))+S7 -> 60 | X7: =V7*COS(RADIANS(90-U7))+T7 -> 100 | Y7: 0 | Z7: =V7*Y7 -> 0 | AA7: =Z7*SIN(RADIANS(90-U7))+S7 -> 60 | AB7: =Z7*COS(RADIANS(90-U7))+T7 -> 0 | AC7: 15 | AD7: 0 | AE7: =AC7*AD7 -> 0 | AG7: 1 | AH7: =IF(MOD($AG7,2)=1,0,INDEX($D$7:$D$46,$AG7/2)*INDEX($AE$7:$AE$16,AH$2))+INDEX($W$7:$W$16,AH$2) -> 60 | AI7: =IF(MOD($AG7,2)=1,0,INDEX($E$7:$E$46,$AG7/2)*INDEX($AE$7:$AE$16,AI$2))+INDEX($X$7:$X$16,AI$2) -> 100 | AJ7: =IF(MOD($AG7,2)=1,0,INDEX($D$7:$D$46,$AG7/2)*INDEX($AE$7:$AE$16,AJ$2))+INDEX($W$7:$W$16,AJ$2) -> 129.2436371 | AK7: =IF(MOD($AG7,2)=1,0,INDEX($E$7:$E$46,$AG7/2)*INDEX($AE$7:$AE$16,AK$2))+INDEX($X$7:$X$16,AK$2) -> 126.6681084 | AL7: =IF(MOD($AG7,2)=1,0,INDEX($D$7:$D$46,$AG7/2)*INDEX($AE$7:$AE$16,AL$2))+INDEX($W$7:$W$16,AL$2) -> 44.9494029 | AM7: =IF(MOD($AG7,2)=1,0,INDEX($E$7:$E$46,$AG7/2)*INDEX($AE$7:$AE$16,AM$2))+INDEX($X$7:$X$16,AM$2) -> 117.3777121 | AN7: =IF(MOD($AG7,2)=1,0,INDEX($D$7:$D$46,$AG7/2)*INDEX($AE$7:$AE$16,AN$2))+INDEX($W$7:$W$16,AN$2) -> -3.869065384 | AO7: =IF(MOD($AG7,2)=1,0,INDEX($E$7:$E$46,$AG7/2)*INDEX($AE$7:$AE$16,AO$2))+INDEX($X$7:$X$16,AO$2) -> 135.8414017 | AP7: =IF(MOD($AG7,2)=1,0,INDEX($D$7:$D$46,$AG7/2)*INDEX($AE$7:$AE$16,AP$2))+INDEX($W$7:$W$16,AP$2) -> 102.4951054 | AQ7: =IF(MOD($AG7,2)=1,0,INDEX($E$7:$E$46,$AG7/2)*INDEX($AE$7:$AE$16,AQ$2))+INDEX($X$7:$X$16,AQ$2) -> 97.43700648 | AR7: =IF(MOD($AG7,2)=1,0,INDEX($D$7:$D$46,$AG7/2)*INDEX($AE$7:$AE$16,AR$2))+INDEX($W$7:$W$16,AR$2) -> 49.10763671 | AS7: =IF(MOD($AG7,2)=1,0,INDEX($E$7:$E$46,$AG7/2)*INDEX($AE$7:$AE$16,AS$2))+INDEX($X$7:$X$16,AS$2) -> 136.9406641 | AT7: =IF(MOD($AG7,2)=1,0,INDEX($D$7:$D$46,$AG7/2)*INDEX($AE$7:$AE$16,AT$2))+INDEX($W$7:$W$16,AT$2) -> 43.07336141 | AU7: =IF(MOD($AG7,2)=1,0,INDEX($E$7:$E$46,$AG7/2)*INDEX($AE$7:$AE$16,AU$2))+INDEX($X$7:$X$16,AU$2) -> 149.4292047 | AV7: =IF(MOD($AG7,2)=1,0,INDEX($D$7:$D$46,$AG7/2)*INDEX($AE$7:$AE$16,AV$2))+INDEX($W$7:$W$16,AV$2) -> 94.53693457 | AW7: =IF(MOD($AG7,2)=1,0,INDEX($E$7:$E$46,$AG7/2)*INDEX($AE$7:$AE$16,AW$2))+INDEX($X$7:$X$16,AW$2) -> 129.9208075 | AX7: =IF(MOD($AG7,2)=1,0,INDEX($D$7:$D$46,$AG7/2)*INDEX($AE$7:$AE$16,AX$2))+INDEX($W$7:$W$16,AX$2) -> 30.50090506 | AY7: =IF(MOD($AG7,2)=1,0,INDEX($E$7:$E$46,$AG7/2)*INDEX($AE$7:$AE$16,AY$2))+INDEX($X$7:$X$16,AY$2) -> 158.8073843 | AZ7: =IF(MOD($AG7,2)=1,0,INDEX($D$7:$D$46,$AG7/2)*INDEX($AE$7:$AE$16,AZ$2))+INDEX($W$7:$W$16,AZ$2) -> 50.23409368 | BA7: =IF(MOD($AG7,2)=1,0,INDEX($E$7:$E$46,$AG7/2)*INDEX($AE$7:$AE$16,BA$2))+INDEX($X$7:$X$16,BA$2) -> 139.658967
B8: 9 | C8: 0.1570796327 | D8: 0.156434465 | E8: 0.9876883406 | R8: C2 | S8: 100 | T8: 0 | U8: 77 | V8: 130 | W8: 129.2436371 | X8: 126.6681084 | Y8: 0 | Z8: 0 | AA8: 100 | AB8: 0 | AC8: 20 | AD8: 0 | AE8: 0 | AG8: 2 | AH8: 60 | AI8: 100 | AJ8: 129.2436371 | AK8: 126.6681084 | AL8: 44.9494029 | AM8: 117.3777121 | AN8: -3.869065384 | AO8: 135.8414017 | AP8: 102.4951054 | AQ8: 97.43700648 | AR8: 49.10763671 | AS8: 136.9406641 | AT8: 43.07336141 | AU8: 149.4292047 | AV8: 94.53693457 | AW8: 129.9208075 | AX8: 30.50090506 | AY8: 158.8073843 | AZ8: 50.23409368 | BA8: 139.658967
B9: 18 | C9: 0.3141592654 | D9: 0.3090169944 | E9: 0.9510565163 | R9: C3 | S9: 20 | T9: 0 | U9: 78 | V9: 120 | W9: 44.9494029 | X9: 117.3777121 | Y9: 0 | Z9: 0 | AA9: 20 | AB9: 0 | AC9: 15 | AD9: 0 | AE9: 0 | AG9: 3 | AH9: 60 | AI9: 100 | AJ9: 129.2436371 | AK9: 126.6681084 | AL9: 44.9494029 | AM9: 117.3777121 | AN9: -3.869065384 | AO9: 135.8414017 | AP9: 102.4951054 | AQ9: 97.43700648 | AR9: 49.10763671 | AS9: 136.9406641 | AT9: 43.07336141 | AU9: 149.4292047 | AV9: 94.53693457 | AW9: 129.9208075 | AX9: 30.50090506 | AY9: 158.8073843 | AZ9: 50.23409368 | BA9: 139.658967
B10: 27 | C10: 0.471238898 | D10: 0.4539904997 | E10: 0.8910065242 | R10: C4 | S10: 30 | T10: 0 | U10: 104 | V10: 140 | W10: -3.869065384 | X10: 135.8414017 | Y10: 0 | Z10: 0 | AA10: 30 | AB10: 0 | AC10: 15 | AD10: 0 | AE10: 0 | AG10: 4 | AH10: 60 | AI10: 100 | AJ10: 129.2436371 | AK10: 126.6681084 | AL10: 44.9494029 | AM10: 117.3777121 | AN10: -3.869065384 | AO10: 135.8414017 | AP10: 102.4951054 | AQ10: 97.43700648 | AR10: 49.10763671 | AS10: 136.9406641 | AT10: 43.07336141 | AU10: 149.4292047 | AV10: 94.53693457 | AW10: 129.9208075 | AX10: 30.50090506 | AY10: 158.8073843 | AZ10: 50.23409368 | BA10: 139.658967
B11: 36 | C11: 0.6283185307 | D11: 0.5877852523 | E11: 0.8090169944 | R11: C5 | S11: 80 | T11: 0 | U11: 77 | V11: 100 | W11: 102.4951054 | X11: 97.43700648 | Y11: 0 | Z11: 0 | AA11: 80 | AB11: 0 | AC11: 20 | AD11: 0 | AE11: 0 | AG11: 5 | AH11: 60 | AI11: 100 | AJ11: 129.2436371 | AK11: 126.6681084 | AL11: 44.9494029 | AM11: 117.3777121 | AN11: -3.869065384 | AO11: 135.8414017 | AP11: 102.4951054 | AQ11: 97.43700648 | AR11: 49.10763671 | AS11: 136.9406641 | AT11: 43.07336141 | AU11: 149.4292047 | AV11: 94.53693457 | AW11: 129.9208075 | AX11: 30.50090506 | AY11: 158.8073843 | AZ11: 50.23409368 | BA11: 139.658967
B12: 45 | C12: 0.7853981634 | D12: 0.7071067812 | E12: 0.7071067812 | R12: C6 | S12: 20 | T12: 0 | U12: 78 | V12: 140 | W12: 49.10763671 | X12: 136.9406641 | Y12: 0 | Z12: 0 | AA12: 20 | AB12: 0 | AC12: 35 | AD12: 0 | AE12: 0 | AG12: 6 | AH12: 60 | AI12: 100 | AJ12: 129.2436371 | AK12: 126.6681084 | AL12: 44.9494029 | AM12: 117.3777121 | AN12: -3.869065384 | AO12: 135.8414017 | AP12: 102.4951054 | AQ12: 97.43700648 | AR12: 49.10763671 | AS12: 136.9406641 | AT12: 43.07336141 | AU12: 149.4292047 | AV12: 94.53693457 | AW12: 129.9208075 | AX12: 30.50090506 | AY12: 158.8073843 | AZ12: 50.23409368 | BA12: 139.658967
B13: 54 | C13: 0.9424777961 | D13: 0.8090169944 | E13: 0.5877852523 | R13: C7 | S13: 30 | T13: 0 | U13: 85 | V13: 150 | W13: 43.07336141 | X13: 149.4292047 | Y13: 0 | Z13: 0 | AA13: 30 | AB13: 0 | AC13: 30 | AD13: 0 | AE13: 0 | AG13: 7 | AH13: 60 | AI13: 100 | AJ13: 129.2436371 | AK13: 126.6681084 | AL13: 44.9494029 | AM13: 117.3777121 | AN13: -3.869065384 | AO13: 135.8414017 | AP13: 102.4951054 | AQ13: 97.43700648 | AR13: 49.10763671 | AS13: 136.9406641 | AT13: 43.07336141 | AU13: 149.4292047 | AV13: 94.53693457 | AW13: 129.9208075 | AX13: 30.50090506 | AY13: 158.8073843 | AZ13: 50.23409368 | BA13: 139.658967
B14: 63 | C14: 1.099557429 | D14: 0.8910065242 | E14: 0.4539904997 | R14: C8 | S14: 90 | T14: 0 | U14: 88 | V14: 130 | W14: 94.53693457 | X14: 129.9208075 | Y14: 0 | Z14: 0 | AA14: 90 | AB14: 0 | AC14: 15 | AD14: 0 | AE14: 0 | AG14: 8 | AH14: 60 | AI14: 100 | AJ14: 129.2436371 | AK14: 126.6681084 | AL14: 44.9494029 | AM14: 117.3777121 | AN14: -3.869065384 | AO14: 135.8414017 | AP14: 102.4951054 | AQ14: 97.43700648 | AR14: 49.10763671 | AS14: 136.9406641 | AT14: 43.07336141 | AU14: 149.4292047 | AV14: 94.53693457 | AW14: 129.9208075 | AX14: 30.50090506 | AY14: 158.8073843 | AZ14: 50.23409368 | BA14: 139.658967
B15: 72 | C15: 1.256637061 | D15: 0.9510565163 | E15: 0.3090169944 | R15: C9 | S15: 50 | T15: 0 | U15: 97 | V15: 160 | W15: 30.50090506 | X15: 158.8073843 | Y15: 0 | Z15: 0 | AA15: 50 | AB15: 0 | AC15: 25 | AD15: 0 | AE15: 0 | AG15: 9 | AH15: 60 | AI15: 100 | AJ15: 129.2436371 | AK15: 126.6681084 | AL15: 44.9494029 | AM15: 117.3777121 | AN15: -3.869065384 | AO15: 135.8414017 | AP15: 102.4951054 | AQ15: 97.43700648 | AR15: 49.10763671 | AS15: 136.9406641 | AT15: 43.07336141 | AU15: 149.4292047 | AV15: 94.53693457 | AW15: 129.9208075 | AX15: 30.50090506 | AY15: 158.8073843 | AZ15: 50.23409368 | BA15: 139.658967
B16: 81 | C16: 1.413716694 | D16: 0.9876883406 | E16: 0.156434465 | R16: C10 | S16: 60 | T16: 0 | U16: 94 | V16: 140 | W16: 50.23409368 | X16: 139.658967 | Y16: 0 | Z16: 0 | AA16: 60 | AB16: 0 | AC16: 20 | AD16: 0 | AE16: 0 | AG16: 10 | AH16: 60 | AI16: 100 | AJ16: 129.2436371 | AK16: 126.6681084 | AL16: 44.9494029 | AM16: 117.3777121 | AN16: -3.869065384 | AO16: 135.8414017 | AP16: 102.4951054 | AQ16: 97.43700648 | AR16: 49.10763671 | AS16: 136.9406641 | AT16: 43.07336141 | AU16: 149.4292047 | AV16: 94.53693457 | AW16: 129.9208075 | AX16: 30.50090506 | AY16: 158.8073843 | AZ16: 50.23409368 | BA16: 139.658967
B17: 90 | C17: 1.570796327 | D17: 1 | E17: 6.125742275e-17 | AG17: 11 | AH17: 60 | AI17: 100 | AJ17: 129.2436371 | AK17: 126.6681084 | AL17: 44.9494029 | AM17: 117.3777121 | AN17: -3.869065384 | AO17: 135.8414017 | AP17: 102.4951054 | AQ17: 97.43700648 | AR17: 49.10763671 | AS17: 136.9406641 | AT17: 43.07336141 | AU17: 149.4292047 | AV17: 94.53693457 | AW17: 129.9208075 | AX17: 30.50090506 | AY17: 158.8073843 | AZ17: 50.23409368 | BA17: 139.658967
B18: 99 | C18: 1.727875959 | D18: 0.9876883406 | E18: -0.156434465 | AG18: 12 | AH18: 60 | AI18: 100 | AJ18: 129.2436371 | AK18: 126.6681084 | AL18: 44.9494029 | AM18: 117.3777121 | AN18: -3.869065384 | AO18: 135.8414017 | AP18: 102.4951054 | AQ18: 97.43700648 | AR18: 49.10763671 | AS18: 136.9406641 | AT18: 43.07336141 | AU18: 149.4292047 | AV18: 94.53693457 | AW18: 129.9208075 | AX18: 30.50090506 | AY18: 158.8073843 | AZ18: 50.23409368 | BA18: 139.658967
B19: 108 | C19: 1.884955592 | D19: 0.9510565163 | E19: -0.3090169944 | AG19: 13 | AH19: 60 | AI19: 100 | AJ19: 129.2436371 | AK19: 126.6681084 | AL19: 44.9494029 | AM19: 117.3777121 | AN19: -3.869065384 | AO19: 135.8414017 | AP19: 102.4951054 | AQ19: 97.43700648 | AR19: 49.10763671 | AS19: 136.9406641 | AT19: 43.07336141 | AU19: 149.4292047 | AV19: 94.53693457 | AW19: 129.9208075 | AX19: 30.50090506 | AY19: 158.8073843 | AZ19: 50.23409368 | BA19: 139.658967
B20: 117 | C20: 2.042035225 | D20: 0.8910065242 | E20: -0.4539904997 | AG20: 14 | AH20: 60 | AI20: 100 | AJ20: 129.2436371 | AK20: 126.6681084 | AL20: 44.9494029 | AM20: 117.3777121 | AN20: -3.869065384 | AO20: 135.8414017 | AP20: 102.4951054 | AQ20: 97.43700648 | AR20: 49.10763671 | AS20: 136.9406641 | AT20: 43.07336141 | AU20: 149.4292047 | AV20: 94.53693457 | AW20: 129.9208075 | AX20: 30.50090506 | AY20: 158.8073843 | AZ20: 50.23409368 | BA20: 139.658967
B21: 126 | C21: 2.199114858 | D21: 0.8090169944 | E21: -0.5877852523 | AG21: 15 | AH21: 60 | AI21: 100 | AJ21: 129.2436371 | AK21: 126.6681084 | AL21: 44.9494029 | AM21: 117.3777121 | AN21: -3.869065384 | AO21: 135.8414017 | AP21: 102.4951054 | AQ21: 97.43700648 | AR21: 49.10763671 | AS21: 136.9406641 | AT21: 43.07336141 | AU21: 149.4292047 | AV21: 94.53693457 | AW21: 129.9208075 | AX21: 30.50090506 | AY21: 158.8073843 | AZ21: 50.23409368 | BA21: 139.658967
B22: 135 | C22: 2.35619449 | D22: 0.7071067812 | E22: -0.7071067812 | R22: Random Values | AG22: 16 | AH22: 60 | AI22: 100 | AJ22: 129.2436371 | AK22: 126.6681084 | AL22: 44.9494029 | AM22: 117.3777121 | AN22: -3.869065384 | AO22: 135.8414017 | AP22: 102.4951054 | AQ22: 97.43700648 | AR22: 49.10763671 | AS22: 136.9406641 | AT22: 43.07336141 | AU22: 149.4292047 | AV22: 94.53693457 | AW22: 129.9208075 | AX22: 30.50090506 | AY22: 158.8073843 | AZ22: 50.23409368 | BA22: 139.658967
B23: 144 | C23: 2.513274123 | D23: 0.5877852523 | E23: -0.8090169944 | R23: X1 | S23: Angle | T23: Max-Height | U23: MaxSize | AG23: 17 | AH23: 60 | AI23: 100 | AJ23: 129.2436371 | AK23: 126.6681084 | AL23: 44.9494029 | AM23: 117.3777121 | AN23: -3.869065384 | AO23: 135.8414017 | AP23: 102.4951054 | AQ23: 97.43700648 | AR23: 49.10763671 | AS23: 136.9406641 | AT23: 43.07336141 | AU23: 149.4292047 | AV23: 94.53693457 | AW23: 129.9208075 | AX23: 30.50090506 | AY23: 158.8073843 | AZ23: 50.23409368 | BA23: 139.658967
B24: 153 | C24: 2.670353756 | D24: 0.4539904997 | E24: -0.8910065242 | R24: =RANDBETWEEN(0,12)*10 -> 90 | S24: =RANDBETWEEN(75,105) -> 76 | T24: =RANDBETWEEN(8,16)*10 -> 100 | U24: =RANDBETWEEN(3,7)*5 -> 35 | AG24: 18 | AH24: 60 | AI24: 100 | AJ24: 129.2436371 | AK24: 126.6681084 | AL24: 44.9494029 | AM24: 117.3777121 | AN24: -3.869065384 | AO24: 135.8414017 | AP24: 102.4951054 | AQ24: 97.43700648 | AR24: 49.10763671 | AS24: 136.9406641 | AT24: 43.07336141 | AU24: 149.4292047 | AV24: 94.53693457 | AW24: 129.9208075 | AX24: 30.50090506 | AY24: 158.8073843 | AZ24: 50.23409368 | BA24: 139.658967
B25: 162 | C25: 2.827433388 | D25: 0.3090169944 | E25: -0.9510565163 | R25: 120 | S25: 80 | T25: 140 | U25: 20 | AG25: 19 | AH25: 60 | AI25: 100 | AJ25: 129.2436371 | AK25: 126.6681084 | AL25: 44.9494029 | AM25: 117.3777121 | AN25: -3.869065384 | AO25: 135.8414017 | AP25: 102.4951054 | AQ25: 97.43700648 | AR25: 49.10763671 | AS25: 136.9406641 | AT25: 43.07336141 | AU25: 149.4292047 | AV25: 94.53693457 | AW25: 129.9208075 | AX25: 30.50090506 | AY25: 158.8073843 | AZ25: 50.23409368 | BA25: 139.658967
B26: 171 | C26: 2.984513021 | D26: 0.156434465 | E26: -0.9876883406 | R26: 0 | S26: 76 | T26: 80 | U26: 35 | AG26: 20 | AH26: 60 | AI26: 100 | AJ26: 129.2436371 | AK26: 126.6681084 | AL26: 44.9494029 | AM26: 117.3777121 | AN26: -3.869065384 | AO26: 135.8414017 | AP26: 102.4951054 | AQ26: 97.43700648 | AR26: 49.10763671 | AS26: 136.9406641 | AT26: 43.07336141 | AU26: 149.4292047 | AV26: 94.53693457 | AW26: 129.9208075 | AX26: 30.50090506 | AY26: 158.8073843 | AZ26: 50.23409368 | BA26: 139.658967
B27: 180 | C27: 3.141592654 | D27: 1.225148455e-16 | E27: -1 | R27: 20 | S27: 81 | T27: 110 | U27: 35 | AG27: 21 | AH27: 60 | AI27: 100 | AJ27: 129.2436371 | AK27: 126.6681084 | AL27: 44.9494029 | AM27: 117.3777121 | AN27: -3.869065384 | AO27: 135.8414017 | AP27: 102.4951054 | AQ27: 97.43700648 | AR27: 49.10763671 | AS27: 136.9406641 | AT27: 43.07336141 | AU27: 149.4292047 | AV27: 94.53693457 | AW27: 129.9208075 | AX27: 30.50090506 | AY27: 158.8073843 | AZ27: 50.23409368 | BA27: 139.658967
B28: 189 | C28: 3.298672286 | D28: -0.156434465 | E28: -0.9876883406 | R28: 20 | S28: 88 | T28: 100 | U28: 35 | AG28: 22 | AH28: 60 | AI28: 100 | AJ28: 129.2436371 | AK28: 126.6681084 | AL28: 44.9494029 | AM28: 117.3777121 | AN28: -3.869065384 | AO28: 135.8414017 | AP28: 102.4951054 | AQ28: 97.43700648 | AR28: 49.10763671 | AS28: 136.9406641 | AT28: 43.07336141 | AU28: 149.4292047 | AV28: 94.53693457 | AW28: 129.9208075 | AX28: 30.50090506 | AY28: 158.8073843 | AZ28: 50.23409368 | BA28: 139.658967
B29: 198 | C29: 3.455751919 | D29: -0.3090169944 | E29: -0.9510565163 | R29: 70 | S29: 88 | T29: 160 | U29: 25 | AG29: 23 | AH29: 60 | AI29: 100 | AJ29: 129.2436371 | AK29: 126.6681084 | AL29: 44.9494029 | AM29: 117.3777121 | AN29: -3.869065384 | AO29: 135.8414017 | AP29: 102.4951054 | AQ29: 97.43700648 | AR29: 49.10763671 | AS29: 136.9406641 | AT29: 43.07336141 | AU29: 149.4292047 | AV29: 94.53693457 | AW29: 129.9208075 | AX29: 30.50090506 | AY29: 158.8073843 | AZ29: 50.23409368 | BA29: 139.658967
B30: 207 | C30: 3.612831552 | D30: -0.4539904997 | E30: -0.8910065242 | R30: 30 | S30: 98 | T30: 140 | U30: 25 | AG30: 24 | AH30: 60 | AI30: 100 | AJ30: 129.2436371 | AK30: 126.6681084 | AL30: 44.9494029 | AM30: 117.3777121 | AN30: -3.869065384 | AO30: 135.8414017 | AP30: 102.4951054 | AQ30: 97.43700648 | AR30: 49.10763671 | AS30: 136.9406641 | AT30: 43.07336141 | AU30: 149.4292047 | AV30: 94.53693457 | AW30: 129.9208075 | AX30: 30.50090506 | AY30: 158.8073843 | AZ30: 50.23409368 | BA30: 139.658967
B31: 216 | C31: 3.769911184 | D31: -0.5877852523 | E31: -0.8090169944 | R31: 40 | S31: 97 | T31: 90 | U31: 30 | AG31: 25 | AH31: 60 | AI31: 100 | AJ31: 129.2436371 | AK31: 126.6681084 | AL31: 44.9494029 | AM31: 117.3777121 | AN31: -3.869065384 | AO31: 135.8414017 | AP31: 102.4951054 | AQ31: 97.43700648 | AR31: 49.10763671 | AS31: 136.9406641 | AT31: 43.07336141 | AU31: 149.4292047 | AV31: 94.53693457 | AW31: 129.9208075 | AX31: 30.50090506 | AY31: 158.8073843 | AZ31: 50.23409368 | BA31: 139.658967
B32: 225 | C32: 3.926990817 | D32: -0.7071067812 | E32: -0.7071067812 | R32: 70 | S32: 105 | T32: 150 | U32: 25 | AG32: 26 | AH32: 60 | AI32: 100 | AJ32: 129.2436371 | AK32: 126.6681084 | AL32: 44.9494029 | AM32: 117.3777121 | AN32: -3.869065384 | AO32: 135.8414017 | AP32: 102.4951054 | AQ32: 97.43700648 | AR32: 49.10763671 | AS32: 136.9406641 | AT32: 43.07336141 | AU32: 149.4292047 | AV32: 94.53693457 | AW32: 129.9208075 | AX32: 30.50090506 | AY32: 158.8073843 | AZ32: 50.23409368 | BA32: 139.658967
B33: 234 | C33: 4.08407045 | D33: -0.8090169944 | E33: -0.5877852523 | R33: 0 | S33: 98 | T33: 120 | U33: 15 | AG33: 27 | AH33: 60 | AI33: 100 | AJ33: 129.2436371 | AK33: 126.6681084 | AL33: 44.9494029 | AM33: 117.3777121 | AN33: -3.869065384 | AO33: 135.8414017 | AP33: 102.4951054 | AQ33: 97.43700648 | AR33: 49.10763671 | AS33: 136.9406641 | AT33: 43.07336141 | AU33: 149.4292047 | AV33: 94.53693457 | AW33: 129.9208075 | AX33: 30.50090506 | AY33: 158.8073843 | AZ33: 50.23409368 | BA33: 139.658967
B34: 243 | C34: 4.241150082 | D34: -0.8910065242 | E34: -0.4539904997 | AG34: 28 | AH34: 60 | AI34: 100 | AJ34: 129.2436371 | AK34: 126.6681084 | AL34: 44.9494029 | AM34: 117.3777121 | AN34: -3.869065384 | AO34: 135.8414017 | AP34: 102.4951054 | AQ34: 97.43700648 | AR34: 49.10763671 | AS34: 136.9406641 | AT34: 43.07336141 | AU34: 149.4292047 | AV34: 94.53693457 | AW34: 129.9208075 | AX34: 30.50090506 | AY34: 158.8073843 | AZ34: 50.23409368 | BA34: 139.658967
B35: 252 | C35: 4.398229715 | D35: -0.9510565163 | E35: -0.3090169944 | AG35: 29 | AH35: 60 | AI35: 100 | AJ35: 129.2436371 | AK35: 126.6681084 | AL35: 44.9494029 | AM35: 117.3777121 | AN35: -3.869065384 | AO35: 135.8414017 | AP35: 102.4951054 | AQ35: 97.43700648 | AR35: 49.10763671 | AS35: 136.9406641 | AT35: 43.07336141 | AU35: 149.4292047 | AV35: 94.53693457 | AW35: 129.9208075 | AX35: 30.50090506 | AY35: 158.8073843 | AZ35: 50.23409368 | BA35: 139.658967
B36: 261 | C36: 4.555309348 | D36: -0.9876883406 | E36: -0.156434465 | AG36: 30 | AH36: 60 | AI36: 100 | AJ36: 129.2436371 | AK36: 126.6681084 | AL36: 44.9494029 | AM36: 117.3777121 | AN36: -3.869065384 | AO36: 135.8414017 | AP36: 102.4951054 | AQ36: 97.43700648 | AR36: 49.10763671 | AS36: 136.9406641 | AT36: 43.07336141 | AU36: 149.4292047 | AV36: 94.53693457 | AW36: 129.9208075 | AX36: 30.50090506 | AY36: 158.8073843 | AZ36: 50.23409368 | BA36: 139.658967
B37: 270 | C37: 4.71238898 | D37: -1 | E37: -1.837722682e-16 | AG37: 31 | AH37: 60 | AI37: 100 | AJ37: 129.2436371 | AK37: 126.6681084 | AL37: 44.9494029 | AM37: 117.3777121 | AN37: -3.869065384 | AO37: 135.8414017 | AP37: 102.4951054 | AQ37: 97.43700648 | AR37: 49.10763671 | AS37: 136.9406641 | AT37: 43.07336141 | AU37: 149.4292047 | AV37: 94.53693457 | AW37: 129.9208075 | AX37: 30.50090506 | AY37: 158.8073843 | AZ37: 50.23409368 | BA37: 139.658967
B38: 279 | C38: 4.869468613 | D38: -0.9876883406 | E38: 0.156434465 | AG38: 32 | AH38: 60 | AI38: 100 | AJ38: 129.2436371 | AK38: 126.6681084 | AL38: 44.9494029 | AM38: 117.3777121 | AN38: -3.869065384 | AO38: 135.8414017 | AP38: 102.4951054 | AQ38: 97.43700648 | AR38: 49.10763671 | AS38: 136.9406641 | AT38: 43.07336141 | AU38: 149.4292047 | AV38: 94.53693457 | AW38: 129.9208075 | AX38: 30.50090506 | AY38: 158.8073843 | AZ38: 50.23409368 | BA38: 139.658967
B39: 288 | C39: 5.026548246 | D39: -0.9510565163 | E39: 0.3090169944 | AG39: 33 | AH39: =IF(MOD($AG39,2)=1,0,INDEX($D$7:$D$46,$AG39/2)*INDEX($AE$7:$AE$16,AH$2))+INDEX($W$7:$W$16,AH$2) -> 60 | AI39: =IF(MOD($AG39,2)=1,0,INDEX($E$7:$E$46,$AG39/2)*INDEX($AE$7:$AE$16,AI$2))+INDEX($X$7:$X$16,AI$2) -> 100 | AJ39: =IF(MOD($AG39,2)=1,0,INDEX($D$7:$D$46,$AG39/2)*INDEX($AE$7:$AE$16,AJ$2))+INDEX($W$7:$W$16,AJ$2) -> 129.2436371 | AK39: =IF(MOD($AG39,2)=1,0,INDEX($E$7:$E$46,$AG39/2)*INDEX($AE$7:$AE$16,AK$2))+INDEX($X$7:$X$16,AK$2) -> 126.6681084 | AL39: =IF(MOD($AG39,2)=1,0,INDEX($D$7:$D$46,$AG39/2)*INDEX($AE$7:$AE$16,AL$2))+INDEX($W$7:$W$16,AL$2) -> 44.9494029 | AM39: =IF(MOD($AG39,2)=1,0,INDEX($E$7:$E$46,$AG39/2)*INDEX($AE$7:$AE$16,AM$2))+INDEX($X$7:$X$16,AM$2) -> 117.3777121 | AN39: =IF(MOD($AG39,2)=1,0,INDEX($D$7:$D$46,$AG39/2)*INDEX($AE$7:$AE$16,AN$2))+INDEX($W$7:$W$16,AN$2) -> -3.869065384 | AO39: =IF(MOD($AG39,2)=1,0,INDEX($E$7:$E$46,$AG39/2)*INDEX($AE$7:$AE$16,AO$2))+INDEX($X$7:$X$16,AO$2) -> 135.8414017 | AP39: =IF(MOD($AG39,2)=1,0,INDEX($D$7:$D$46,$AG39/2)*INDEX($AE$7:$AE$16,AP$2))+INDEX($W$7:$W$16,AP$2) -> 102.4951054 | AQ39: =IF(MOD($AG39,2)=1,0,INDEX($E$7:$E$46,$AG39/2)*INDEX($AE$7:$AE$16,AQ$2))+INDEX($X$7:$X$16,AQ$2) -> 97.43700648 | AR39: =IF(MOD($AG39,2)=1,0,INDEX($D$7:$D$46,$AG39/2)*INDEX($AE$7:$AE$16,AR$2))+INDEX($W$7:$W$16,AR$2) -> 49.10763671 | AS39: =IF(MOD($AG39,2)=1,0,INDEX($E$7:$E$46,$AG39/2)*INDEX($AE$7:$AE$16,AS$2))+INDEX($X$7:$X$16,AS$2) -> 136.9406641 | AT39: =IF(MOD($AG39,2)=1,0,INDEX($D$7:$D$46,$AG39/2)*INDEX($AE$7:$AE$16,AT$2))+INDEX($W$7:$W$16,AT$2) -> 43.07336141 | AU39: =IF(MOD($AG39,2)=1,0,INDEX($E$7:$E$46,$AG39/2)*INDEX($AE$7:$AE$16,AU$2))+INDEX($X$7:$X$16,AU$2) -> 149.4292047 | AV39: =IF(MOD($AG39,2)=1,0,INDEX($D$7:$D$46,$AG39/2)*INDEX($AE$7:$AE$16,AV$2))+INDEX($W$7:$W$16,AV$2) -> 94.53693457 | AW39: =IF(MOD($AG39,2)=1,0,INDEX($E$7:$E$46,$AG39/2)*INDEX($AE$7:$AE$16,AW$2))+INDEX($X$7:$X$16,AW$2) -> 129.9208075 | AX39: =IF(MOD($AG39,2)=1,0,INDEX($D$7:$D$46,$AG39/2)*INDEX($AE$7:$AE$16,AX$2))+INDEX($W$7:$W$16,AX$2) -> 30.50090506 | AY39: =IF(MOD($AG39,2)=1,0,INDEX($E$7:$E$46,$AG39/2)*INDEX($AE$7:$AE$16,AY$2))+INDEX($X$7:$X$16,AY$2) -> 158.8073843 | AZ39: =IF(MOD($AG39,2)=1,0,INDEX($D$7:$D$46,$AG39/2)*INDEX($AE$7:$AE$16,AZ$2))+INDEX($W$7:$W$16,AZ$2) -> 50.23409368 | BA39: =IF(MOD($AG39,2)=1,0,INDEX($E$7:$E$46,$AG39/2)*INDEX($AE$7:$AE$16,BA$2))+INDEX($X$7:$X$16,BA$2) -> 139.658967
B40: 297 | C40: 5.183627878 | D40: -0.8910065242 | E40: 0.4539904997 | AG40: 34 | AH40: 60 | AI40: 100 | AJ40: 129.2436371 | AK40: 126.6681084 | AL40: 44.9494029 | AM40: 117.3777121 | AN40: -3.869065384 | AO40: 135.8414017 | AP40: 102.4951054 | AQ40: 97.43700648 | AR40: 49.10763671 | AS40: 136.9406641 | AT40: 43.07336141 | AU40: 149.4292047 | AV40: 94.53693457 | AW40: 129.9208075 | AX40: 30.50090506 | AY40: 158.8073843 | AZ40: 50.23409368 | BA40: 139.658967
B41: 306 | C41: 5.340707511 | D41: -0.8090169944 | E41: 0.5877852523 | AG41: 35 | AH41: 60 | AI41: 100 | AJ41: 129.2436371 | AK41: 126.6681084 | AL41: 44.9494029 | AM41: 117.3777121 | AN41: -3.869065384 | AO41: 135.8414017 | AP41: 102.4951054 | AQ41: 97.43700648 | AR41: 49.10763671 | AS41: 136.9406641 | AT41: 43.07336141 | AU41: 149.4292047 | AV41: 94.53693457 | AW41: 129.9208075 | AX41: 30.50090506 | AY41: 158.8073843 | AZ41: 50.23409368 | BA41: 139.658967
B42: 315 | C42: 5.497787144 | D42: -0.7071067812 | E42: 0.7071067812 | AG42: 36 | AH42: 60 | AI42: 100 | AJ42: 129.2436371 | AK42: 126.6681084 | AL42: 44.9494029 | AM42: 117.3777121 | AN42: -3.869065384 | AO42: 135.8414017 | AP42: 102.4951054 | AQ42: 97.43700648 | AR42: 49.10763671 | AS42: 136.9406641 | AT42: 43.07336141 | AU42: 149.4292047 | AV42: 94.53693457 | AW42: 129.9208075 | AX42: 30.50090506 | AY42: 158.8073843 | AZ42: 50.23409368 | BA42: 139.658967
B43: 324 | C43: 5.654866776 | D43: -0.5877852523 | E43: 0.8090169944 | AG43: 37 | AH43: 60 | AI43: 100 | AJ43: 129.2436371 | AK43: 126.6681084 | AL43: 44.9494029 | AM43: 117.3777121 | AN43: -3.869065384 | AO43: 135.8414017 | AP43: 102.4951054 | AQ43: 97.43700648 | AR43: 49.10763671 | AS43: 136.9406641 | AT43: 43.07336141 | AU43: 149.4292047 | AV43: 94.53693457 | AW43: 129.9208075 | AX43: 30.50090506 | AY43: 158.8073843 | AZ43: 50.23409368 | BA43: 139.658967
B44: 333 | C44: 5.811946409 | D44: -0.4539904997 | E44: 0.8910065242 | AG44: 38 | AH44: 60 | AI44: 100 | AJ44: 129.2436371 | AK44: 126.6681084 | AL44: 44.9494029 | AM44: 117.3777121 | AN44: -3.869065384 | AO44: 135.8414017 | AP44: 102.4951054 | AQ44: 97.43700648 | AR44: 49.10763671 | AS44: 136.9406641 | AT44: 43.07336141 | AU44: 149.4292047 | AV44: 94.53693457 | AW44: 129.9208075 | AX44: 30.50090506 | AY44: 158.8073843 | AZ44: 50.23409368 | BA44: 139.658967
B45: 342 | C45: 5.969026042 | D45: -0.3090169944 | E45: 0.9510565163 | AG45: 39 | AH45: 60 | AI45: 100 | AJ45: 129.2436371 | AK45: 126.6681084 | AL45: 44.9494029 | AM45: 117.3777121 | AN45: -3.869065384 | AO45: 135.8414017 | AP45: 102.4951054 | AQ45: 97.43700648 | AR45: 49.10763671 | AS45: 136.9406641 | AT45: 43.07336141 | AU45: 149.4292047 | AV45: 94.53693457 | AW45: 129.9208075 | AX45: 30.50090506 | AY45: 158.8073843 | AZ45: 50.23409368 | BA45: 139.658967
B46: 351 | C46: 6.126105675 | D46: -0.156434465 | E46: 0.9876883406 | AG46: 40 | AH46: 60 | AI46: 100 | AJ46: 129.2436371 | AK46: 126.6681084 | AL46: 44.9494029 | AM46: 117.3777121 | AN46: -3.869065384 | AO46: 135.8414017 | AP46: 102.4951054 | AQ46: 97.43700648 | AR46: 49.10763671 | AS46: 136.9406641 | AT46: 43.07336141 | AU46: 149.4292047 | AV46: 94.53693457 | AW46: 129.9208075 | AX46: 30.50090506 | AY46: 158.8073843 | AZ46: 50.23409368 | BA46: 139.658967
AG47: 41 | AH47: 60 | AI47: 100 | AJ47: 129.2436371 | AK47: 126.6681084 | AL47: 44.9494029 | AM47: 117.3777121 | AN47: -3.869065384 | AO47: 135.8414017 | AP47: 102.4951054 | AQ47: 97.43700648 | AR47: 49.10763671 | AS47: 136.9406641 | AT47: 43.07336141 | AU47: 149.4292047 | AV47: 94.53693457 | AW47: 129.9208075 | AX47: 30.50090506 | AY47: 158.8073843 | AZ47: 50.23409368 | BA47: 139.658967
AG48: 42 | AH48: 60 | AI48: 100 | AJ48: 129.2436371 | AK48: 126.6681084 | AL48: 44.9494029 | AM48: 117.3777121 | AN48: -3.869065384 | AO48: 135.8414017 | AP48: 102.4951054 | AQ48: 97.43700648 | AR48: 49.10763671 | AS48: 136.9406641 | AT48: 43.07336141 | AU48: 149.4292047 | AV48: 94.53693457 | AW48: 129.9208075 | AX48: 30.50090506 | AY48: 158.8073843 | AZ48: 50.23409368 | BA48: 139.658967
AG49: 43 | AH49: 60 | AI49: 100 | AJ49: 129.2436371 | AK49: 126.6681084 | AL49: 44.9494029 | AM49: 117.3777121 | AN49: -3.869065384 | AO49: 135.8414017 | AP49: 102.4951054 | AQ49: 97.43700648 | AR49: 49.10763671 | AS49: 136.9406641 | AT49: 43.07336141 | AU49: 149.4292047 | AV49: 94.53693457 | AW49: 129.9208075 | AX49: 30.50090506 | AY49: 158.8073843 | AZ49: 50.23409368 | BA49: 139.658967
AG50: 44 | AH50: 60 | AI50: 100 | AJ50: 129.2436371 | AK50: 126.6681084 | AL50: 44.9494029 | AM50: 117.3777121 | AN50: -3.869065384 | AO50: 135.8414017 | AP50: 102.4951054 | AQ50: 97.43700648 | AR50: 49.10763671 | AS50: 136.9406641 | AT50: 43.07336141 | AU50: 149.4292047 | AV50: 94.53693457 | AW50: 129.9208075 | AX50: 30.50090506 | AY50: 158.8073843 | AZ50: 50.23409368 | BA50: 139.658967
AG51: 45 | AH51: 60 | AI51: 100 | AJ51: 129.2436371 | AK51: 126.6681084 | AL51: 44.9494029 | AM51: 117.3777121 | AN51: -3.869065384 | AO51: 135.8414017 | AP51: 102.4951054 | AQ51: 97.43700648 | AR51: 49.10763671 | AS51: 136.9406641 | AT51: 43.07336141 | AU51: 149.4292047 | AV51: 94.53693457 | AW51: 129.9208075 | AX51: 30.50090506 | AY51: 158.8073843 | AZ51: 50.23409368 | BA51: 139.658967
AG52: 46 | AH52: 60 | AI52: 100 | AJ52: 129.2436371 | AK52: 126.6681084 | AL52: 44.9494029 | AM52: 117.3777121 | AN52: -3.869065384 | AO52: 135.8414017 | AP52: 102.4951054 | AQ52: 97.43700648 | AR52: 49.10763671 | AS52: 136.9406641 | AT52: 43.07336141 | AU52: 149.4292047 | AV52: 94.53693457 | AW52: 129.9208075 | AX52: 30.50090506 | AY52: 158.8073843 | AZ52: 50.23409368 | BA52: 139.658967
AG53: 47 | AH53: 60 | AI53: 100 | AJ53: 129.2436371 | AK53: 126.6681084 | AL53: 44.9494029 | AM53: 117.3777121 | AN53: -3.869065384 | AO53: 135.8414017 | AP53: 102.4951054 | AQ53: 97.43700648 | AR53: 49.10763671 | AS53: 136.9406641 | AT53: 43.07336141 | AU53: 149.4292047 | AV53: 94.53693457 | AW53: 129.9208075 | AX53: 30.50090506 | AY53: 158.8073843 | AZ53: 50.23409368 | BA53: 139.658967
AG54: 48 | AH54: 60 | AI54: 100 | AJ54: 129.2436371 | AK54: 126.6681084 | AL54: 44.9494029 | AM54: 117.3777121 | AN54: -3.869065384 | AO54: 135.8414017 | AP54: 102.4951054 | AQ54: 97.43700648 | AR54: 49.10763671 | AS54: 136.9406641 | AT54: 43.07336141 | AU54: 149.4292047 | AV54: 94.53693457 | AW54: 129.9208075 | AX54: 30.50090506 | AY54: 158.8073843 | AZ54: 50.23409368 | BA54: 139.658967
AG55: 49 | AH55: 60 | AI55: 100 | AJ55: 129.2436371 | AK55: 126.6681084 | AL55: 44.9494029 | AM55: 117.3777121 | AN55: -3.869065384 | AO55: 135.8414017 | AP55: 102.4951054 | AQ55: 97.43700648 | AR55: 49.10763671 | AS55: 136.9406641 | AT55: 43.07336141 | AU55: 149.4292047 | AV55: 94.53693457 | AW55: 129.9208075 | AX55: 30.50090506 | AY55: 158.8073843 | AZ55: 50.23409368 | BA55: 139.658967
AG56: 50 | AH56: 60 | AI56: 100 | AJ56: 129.2436371 | AK56: 126.6681084 | AL56: 44.9494029 | AM56: 117.3777121 | AN56: -3.869065384 | AO56: 135.8414017 | AP56: 102.4951054 | AQ56: 97.43700648 | AR56: 49.10763671 | AS56: 136.9406641 | AT56: 43.07336141 | AU56: 149.4292047 | AV56: 94.53693457 | AW56: 129.9208075 | AX56: 30.50090506 | AY56: 158.8073843 | AZ56: 50.23409368 | BA56: 139.658967
AG57: 51 | AH57: 60 | AI57: 100 | AJ57: 129.2436371 | AK57: 126.6681084 | AL57: 44.9494029 | AM57: 117.3777121 | AN57: -3.869065384 | AO57: 135.8414017 | AP57: 102.4951054 | AQ57: 97.43700648 | AR57: 49.10763671 | AS57: 136.9406641 | AT57: 43.07336141 | AU57: 149.4292047 | AV57: 94.53693457 | AW57: 129.9208075 | AX57: 30.50090506 | AY57: 158.8073843 | AZ57: 50.23409368 | BA57: 139.658967
AG58: 52 | AH58: 60 | AI58: 100 | AJ58: 129.2436371 | AK58: 126.6681084 | AL58: 44.9494029 | AM58: 117.3777121 | AN58: -3.869065384 | AO58: 135.8414017 | AP58: 102.4951054 | AQ58: 97.43700648 | AR58: 49.10763671 | AS58: 136.9406641 | AT58: 43.07336141 | AU58: 149.4292047 | AV58: 94.53693457 | AW58: 129.9208075 | AX58: 30.50090506 | AY58: 158.8073843 | AZ58: 50.23409368 | BA58: 139.658967
AG59: 53 | AH59: 60 | AI59: 100 | AJ59: 129.2436371 | AK59: 126.6681084 | AL59: 44.9494029 | AM59: 117.3777121 | AN59: -3.869065384 | AO59: 135.8414017 | AP59: 102.4951054 | AQ59: 97.43700648 | AR59: 49.10763671 | AS59: 136.9406641 | AT59: 43.07336141 | AU59: 149.4292047 | AV59: 94.53693457 | AW59: 129.9208075 | AX59: 30.50090506 | AY59: 158.8073843 | AZ59: 50.23409368 | BA59: 139.658967
AG60: 54 | AH60: 60 | AI60: 100 | AJ60: 129.2436371 | AK60: 126.6681084 | AL60: 44.9494029 | AM60: 117.3777121 | AN60: -3.869065384 | AO60: 135.8414017 | AP60: 102.4951054 | AQ60: 97.43700648 | AR60: 49.10763671 | AS60: 136.9406641 | AT60: 43.07336141 | AU60: 149.4292047 | AV60: 94.53693457 | AW60: 129.9208075 | AX60: 30.50090506 | AY60: 158.8073843 | AZ60: 50.23409368 | BA60: 139.658967
AG61: 55 | AH61: 60 | AI61: 100 | AJ61: 129.2436371 | AK61: 126.6681084 | AL61: 44.9494029 | AM61: 117.3777121 | AN61: -3.869065384 | AO61: 135.8414017 | AP61: 102.4951054 | AQ61: 97.43700648 | AR61: 49.10763671 | AS61: 136.9406641 | AT61: 43.07336141 | AU61: 149.4292047 | AV61: 94.53693457 | AW61: 129.9208075 | AX61: 30.50090506 | AY61: 158.8073843 | AZ61: 50.23409368 | BA61: 139.658967
AG62: 56 | AH62: 60 | AI62: 100 | AJ62: 129.2436371 | AK62: 126.6681084 | AL62: 44.9494029 | AM62: 117.3777121 | AN62: -3.869065384 | AO62: 135.8414017 | AP62: 102.4951054 | AQ62: 97.43700648 | AR62: 49.10763671 | AS62: 136.9406641 | AT62: 43.07336141 | AU62: 149.4292047 | AV62: 94.53693457 | AW62: 129.9208075 | AX62: 30.50090506 | AY62: 158.8073843 | AZ62: 50.23409368 | BA62: 139.658967
AG63: 57 | AH63: 60 | AI63: 100 | AJ63: 129.2436371 | AK63: 126.6681084 | AL63: 44.9494029 | AM63: 117.3777121 | AN63: -3.869065384 | AO63: 135.8414017 | AP63: 102.4951054 | AQ63: 97.43700648 | AR63: 49.10763671 | AS63: 136.9406641 | AT63: 43.07336141 | AU63: 149.4292047 | AV63: 94.53693457 | AW63: 129.9208075 | AX63: 30.50090506 | AY63: 158.8073843 | AZ63: 50.23409368 | BA63: 139.658967
AG64: 58 | AH64: 60 | AI64: 100 | AJ64: 129.2436371 | AK64: 126.6681084 | AL64: 44.9494029 | AM64: 117.3777121 | AN64: -3.869065384 | AO64: 135.8414017 | AP64: 102.4951054 | AQ64: 97.43700648 | AR64: 49.10763671 | AS64: 136.9406641 | AT64: 43.07336141 | AU64: 149.4292047 | AV64: 94.53693457 | AW64: 129.9208075 | AX64: 30.50090506 | AY64: 158.8073843 | AZ64: 50.23409368 | BA64: 139.658967
AG65: 59 | AH65: 60 | AI65: 100 | AJ65: 129.2436371 | AK65: 126.6681084 | AL65: 44.9494029 | AM65: 117.3777121 | AN65: -3.869065384 | AO65: 135.8414017 | AP65: 102.4951054 | AQ65: 97.43700648 | AR65: 49.10763671 | AS65: 136.9406641 | AT65: 43.07336141 | AU65: 149.4292047 | AV65: 94.53693457 | AW65: 129.9208075 | AX65: 30.50090506 | AY65: 158.8073843 | AZ65: 50.23409368 | BA65: 139.658967
AG66: 60 | AH66: 60 | AI66: 100 | AJ66: 129.2436371 | AK66: 126.6681084 | AL66: 44.9494029 | AM66: 117.3777121 | AN66: -3.869065384 | AO66: 135.8414017 | AP66: 102.4951054 | AQ66: 97.43700648 | AR66: 49.10763671 | AS66: 136.9406641 | AT66: 43.07336141 | AU66: 149.4292047 | AV66: 94.53693457 | AW66: 129.9208075 | AX66: 30.50090506 | AY66: 158.8073843 | AZ66: 50.23409368 | BA66: 139.658967
AG67: 61 | AH67: 60 | AI67: 100 | AJ67: 129.2436371 | AK67: 126.6681084 | AL67: 44.9494029 | AM67: 117.3777121 | AN67: -3.869065384 | AO67: 135.8414017 | AP67: 102.4951054 | AQ67: 97.43700648 | AR67: 49.10763671 | AS67: 136.9406641 | AT67: 43.07336141 | AU67: 149.4292047 | AV67: 94.53693457 | AW67: 129.9208075 | AX67: 30.50090506 | AY67: 158.8073843 | AZ67: 50.23409368 | BA67: 139.658967
AG68: 62 | AH68: 60 | AI68: 100 | AJ68: 129.2436371 | AK68: 126.6681084 | AL68: 44.9494029 | AM68: 117.3777121 | AN68: -3.869065384 | AO68: 135.8414017 | AP68: 102.4951054 | AQ68: 97.43700648 | AR68: 49.10763671 | AS68: 136.9406641 | AT68: 43.07336141 | AU68: 149.4292047 | AV68: 94.53693457 | AW68: 129.9208075 | AX68: 30.50090506 | AY68: 158.8073843 | AZ68: 50.23409368 | BA68: 139.658967
AG69: 63 | AH69: 60 | AI69: 100 | AJ69: 129.2436371 | AK69: 126.6681084 | AL69: 44.9494029 | AM69: 117.3777121 | AN69: -3.869065384 | AO69: 135.8414017 | AP69: 102.4951054 | AQ69: 97.43700648 | AR69: 49.10763671 | AS69: 136.9406641 | AT69: 43.07336141 | AU69: 149.4292047 | AV69: 94.53693457 | AW69: 129.9208075 | AX69: 30.50090506 | AY69: 158.8073843 | AZ69: 50.23409368 | BA69: 139.658967
AG70: 64 | AH70: 60 | AI70: 100 | AJ70: 129.2436371 | AK70: 126.6681084 | AL70: 44.9494029 | AM70: 117.3777121 | AN70: -3.869065384 | AO70: 135.8414017 | AP70: 102.4951054 | AQ70: 97.43700648 | AR70: 49.10763671 | AS70: 136.9406641 | AT70: 43.07336141 | AU70: 149.4292047 | AV70: 94.53693457 | AW70: 129.9208075 | AX70: 30.50090506 | AY70: 158.8073843 | AZ70: 50.23409368 | BA70: 139.658967
AG71: 65 | AH71: =IF(MOD($AG71,2)=1,0,INDEX($D$7:$D$46,$AG71/2)*INDEX($AE$7:$AE$16,AH$2))+INDEX($W$7:$W$16,AH$2) -> 60 | AI71: =IF(MOD($AG71,2)=1,0,INDEX($E$7:$E$46,$AG71/2)*INDEX($AE$7:$AE$16,AI$2))+INDEX($X$7:$X$16,AI$2) -> 100 | AJ71: =IF(MOD($AG71,2)=1,0,INDEX($D$7:$D$46,$AG71/2)*INDEX($AE$7:$AE$16,AJ$2))+INDEX($W$7:$W$16,AJ$2) -> 129.2436371 | AK71: =IF(MOD($AG71,2)=1,0,INDEX($E$7:$E$46,$AG71/2)*INDEX($AE$7:$AE$16,AK$2))+INDEX($X$7:$X$16,AK$2) -> 126.6681084 | AL71: =IF(MOD($AG71,2)=1,0,INDEX($D$7:$D$46,$AG71/2)*INDEX($AE$7:$AE$16,AL$2))+INDEX($W$7:$W$16,AL$2) -> 44.9494029 | AM71: =IF(MOD($AG71,2)=1,0,INDEX($E$7:$E$46,$AG71/2)*INDEX($AE$7:$AE$16,AM$2))+INDEX($X$7:$X$16,AM$2) -> 117.3777121 | AN71: =IF(MOD($AG71,2)=1,0,INDEX($D$7:$D$46,$AG71/2)*INDEX($AE$7:$AE$16,AN$2))+INDEX($W$7:$W$16,AN$2) -> -3.869065384 | AO71: =IF(MOD($AG71,2)=1,0,INDEX($E$7:$E$46,$AG71/2)*INDEX($AE$7:$AE$16,AO$2))+INDEX($X$7:$X$16,AO$2) -> 135.8414017 | AP71: =IF(MOD($AG71,2)=1,0,INDEX($D$7:$D$46,$AG71/2)*INDEX($AE$7:$AE$16,AP$2))+INDEX($W$7:$W$16,AP$2) -> 102.4951054 | AQ71: =IF(MOD($AG71,2)=1,0,INDEX($E$7:$E$46,$AG71/2)*INDEX($AE$7:$AE$16,AQ$2))+INDEX($X$7:$X$16,AQ$2) -> 97.43700648 | AR71: =IF(MOD($AG71,2)=1,0,INDEX($D$7:$D$46,$AG71/2)*INDEX($AE$7:$AE$16,AR$2))+INDEX($W$7:$W$16,AR$2) -> 49.10763671 | AS71: =IF(MOD($AG71,2)=1,0,INDEX($E$7:$E$46,$AG71/2)*INDEX($AE$7:$AE$16,AS$2))+INDEX($X$7:$X$16,AS$2) -> 136.9406641 | AT71: =IF(MOD($AG71,2)=1,0,INDEX($D$7:$D$46,$AG71/2)*INDEX($AE$7:$AE$16,AT$2))+INDEX($W$7:$W$16,AT$2) -> 43.07336141 | AU71: =IF(MOD($AG71,2)=1,0,INDEX($E$7:$E$46,$AG71/2)*INDEX($AE$7:$AE$16,AU$2))+INDEX($X$7:$X$16,AU$2) -> 149.4292047 | AV71: =IF(MOD($AG71,2)=1,0,INDEX($D$7:$D$46,$AG71/2)*INDEX($AE$7:$AE$16,AV$2))+INDEX($W$7:$W$16,AV$2) -> 94.53693457 | AW71: =IF(MOD($AG71,2)=1,0,INDEX($E$7:$E$46,$AG71/2)*INDEX($AE$7:$AE$16,AW$2))+INDEX($X$7:$X$16,AW$2) -> 129.9208075 | AX71: =IF(MOD($AG71,2)=1,0,INDEX($D$7:$D$46,$AG71/2)*INDEX($AE$7:$AE$16,AX$2))+INDEX($W$7:$W$16,AX$2) -> 30.50090506 | AY71: =IF(MOD($AG71,2)=1,0,INDEX($E$7:$E$46,$AG71/2)*INDEX($AE$7:$AE$16,AY$2))+INDEX($X$7:$X$16,AY$2) -> 158.8073843 | AZ71: =IF(MOD($AG71,2)=1,0,INDEX($D$7:$D$46,$AG71/2)*INDEX($AE$7:$AE$16,AZ$2))+INDEX($W$7:$W$16,AZ$2) -> 50.23409368 | BA71: =IF(MOD($AG71,2)=1,0,INDEX($E$7:$E$46,$AG71/2)*INDEX($AE$7:$AE$16,BA$2))+INDEX($X$7:$X$16,BA$2) -> 139.658967
AG72: 66 | AH72: 60 | AI72: 100 | AJ72: 129.2436371 | AK72: 126.6681084 | AL72: 44.9494029 | AM72: 117.3777121 | AN72: -3.869065384 | AO72: 135.8414017 | AP72: 102.4951054 | AQ72: 97.43700648 | AR72: 49.10763671 | AS72: 136.9406641 | AT72: 43.07336141 | AU72: 149.4292047 | AV72: 94.53693457 | AW72: 129.9208075 | AX72: 30.50090506 | AY72: 158.8073843 | AZ72: 50.23409368 | BA72: 139.658967
AG73: 67 | AH73: 60 | AI73: 100 | AJ73: 129.2436371 | AK73: 126.6681084 | AL73: 44.9494029 | AM73: 117.3777121 | AN73: -3.869065384 | AO73: 135.8414017 | AP73: 102.4951054 | AQ73: 97.43700648 | AR73: 49.10763671 | AS73: 136.9406641 | AT73: 43.07336141 | AU73: 149.4292047 | AV73: 94.53693457 | AW73: 129.9208075 | AX73: 30.50090506 | AY73: 158.8073843 | AZ73: 50.23409368 | BA73: 139.658967
AG74: 68 | AH74: 60 | AI74: 100 | AJ74: 129.2436371 | AK74: 126.6681084 | AL74: 44.9494029 | AM74: 117.3777121 | AN74: -3.869065384 | AO74: 135.8414017 | AP74: 102.4951054 | AQ74: 97.43700648 | AR74: 49.10763671 | AS74: 136.9406641 | AT74: 43.07336141 | AU74: 149.4292047 | AV74: 94.53693457 | AW74: 129.9208075 | AX74: 30.50090506 | AY74: 158.8073843 | AZ74: 50.23409368 | BA74: 139.658967
AG75: 69 | AH75: 60 | AI75: 100 | AJ75: 129.2436371 | AK75: 126.6681084 | AL75: 44.9494029 | AM75: 117.3777121 | AN75: -3.869065384 | AO75: 135.8414017 | AP75: 102.4951054 | AQ75: 97.43700648 | AR75: 49.10763671 | AS75: 136.9406641 | AT75: 43.07336141 | AU75: 149.4292047 | AV75: 94.53693457 | AW75: 129.9208075 | AX75: 30.50090506 | AY75: 158.8073843 | AZ75: 50.23409368 | BA75: 139.658967
AG76: 70 | AH76: 60 | AI76: 100 | AJ76: 129.2436371 | AK76: 126.6681084 | AL76: 44.9494029 | AM76: 117.3777121 | AN76: -3.869065384 | AO76: 135.8414017 | AP76: 102.4951054 | AQ76: 97.43700648 | AR76: 49.10763671 | AS76: 136.9406641 | AT76: 43.07336141 | AU76: 149.4292047 | AV76: 94.53693457 | AW76: 129.9208075 | AX76: 30.50090506 | AY76: 158.8073843 | AZ76: 50.23409368 | BA76: 139.658967
AG77: 71 | AH77: 60 | AI77: 100 | AJ77: 129.2436371 | AK77: 126.6681084 | AL77: 44.9494029 | AM77: 117.3777121 | AN77: -3.869065384 | AO77: 135.8414017 | AP77: 102.4951054 | AQ77: 97.43700648 | AR77: 49.10763671 | AS77: 136.9406641 | AT77: 43.07336141 | AU77: 149.4292047 | AV77: 94.53693457 | AW77: 129.9208075 | AX77: 30.50090506 | AY77: 158.8073843 | AZ77: 50.23409368 | BA77: 139.658967
AG78: 72 | AH78: 60 | AI78: 100 | AJ78: 129.2436371 | AK78: 126.6681084 | AL78: 44.9494029 | AM78: 117.3777121 | AN78: -3.869065384 | AO78: 135.8414017 | AP78: 102.4951054 | AQ78: 97.43700648 | AR78: 49.10763671 | AS78: 136.9406641 | AT78: 43.07336141 | AU78: 149.4292047 | AV78: 94.53693457 | AW78: 129.9208075 | AX78: 30.50090506 | AY78: 158.8073843 | AZ78: 50.23409368 | BA78: 139.658967
AG79: 73 | AH79: 60 | AI79: 100 | AJ79: 129.2436371 | AK79: 126.6681084 | AL79: 44.9494029 | AM79: 117.3777121 | AN79: -3.869065384 | AO79: 135.8414017 | AP79: 102.4951054 | AQ79: 97.43700648 | AR79: 49.10763671 | AS79: 136.9406641 | AT79: 43.07336141 | AU79: 149.4292047 | AV79: 94.53693457 | AW79: 129.9208075 | AX79: 30.50090506 | AY79: 158.8073843 | AZ79: 50.23409368 | BA79: 139.658967
AG80: 74 | AH80: 60 | AI80: 100 | AJ80: 129.2436371 | AK80: 126.6681084 | AL80: 44.9494029 | AM80: 117.3777121 | AN80: -3.869065384 | AO80: 135.8414017 | AP80: 102.4951054 | AQ80: 97.43700648 | AR80: 49.10763671 | AS80: 136.9406641 | AT80: 43.07336141 | AU80: 149.4292047 | AV80: 94.53693457 | AW80: 129.9208075 | AX80: 30.50090506 | AY80: 158.8073843 | AZ80: 50.23409368 | BA80: 139.658967
AG81: 75 | AH81: 60 | AI81: 100 | AJ81: 129.2436371 | AK81: 126.6681084 | AL81: 44.9494029 | AM81: 117.3777121 | AN81: -3.869065384 | AO81: 135.8414017 | AP81: 102.4951054 | AQ81: 97.43700648 | AR81: 49.10763671 | AS81: 136.9406641 | AT81: 43.07336141 | AU81: 149.4292047 | AV81: 94.53693457 | AW81: 129.9208075 | AX81: 30.50090506 | AY81: 158.8073843 | AZ81: 50.23409368 | BA81: 139.658967
AG82: 76 | AH82: 60 | AI82: 100 | AJ82: 129.2436371 | AK82: 126.6681084 | AL82: 44.9494029 | AM82: 117.3777121 | AN82: -3.869065384 | AO82: 135.8414017 | AP82: 102.4951054 | AQ82: 97.43700648 | AR82: 49.10763671 | AS82: 136.9406641 | AT82: 43.07336141 | AU82: 149.4292047 | AV82: 94.53693457 | AW82: 129.9208075 | AX82: 30.50090506 | AY82: 158.8073843 | AZ82: 50.23409368 | BA82: 139.658967
AG83: 77 | AH83: 60 | AI83: 100 | AJ83: 129.2436371 | AK83: 126.6681084 | AL83: 44.9494029 | AM83: 117.3777121 | AN83: -3.869065384 | AO83: 135.8414017 | AP83: 102.4951054 | AQ83: 97.43700648 | AR83: 49.10763671 | AS83: 136.9406641 | AT83: 43.07336141 | AU83: 149.4292047 | AV83: 94.53693457 | AW83: 129.9208075 | AX83: 30.50090506 | AY83: 158.8073843 | AZ83: 50.23409368 | BA83: 139.658967
AG84: 78 | AH84: 60 | AI84: 100 | AJ84: 129.2436371 | AK84: 126.6681084 | AL84: 44.9494029 | AM84: 117.3777121 | AN84: -3.869065384 | AO84: 135.8414017 | AP84: 102.4951054 | AQ84: 97.43700648 | AR84: 49.10763671 | AS84: 136.9406641 | AT84: 43.07336141 | AU84: 149.4292047 | AV84: 94.53693457 | AW84: 129.9208075 | AX84: 30.50090506 | AY84: 158.8073843 | AZ84: 50.23409368 | BA84: 139.658967
AG85: 79 | AH85: 60 | AI85: 100 | AJ85: 129.2436371 | AK85: 126.6681084 | AL85: 44.9494029 | AM85: 117.3777121 | AN85: -3.869065384 | AO85: 135.8414017 | AP85: 102.4951054 | AQ85: 97.43700648 | AR85: 49.10763671 | AS85: 136.9406641 | AT85: 43.07336141 | AU85: 149.4292047 | AV85: 94.53693457 | AW85: 129.9208075 | AX85: 30.50090506 | AY85: 158.8073843 | AZ85: 50.23409368 | BA85: 139.658967
AG86: 80 | AH86: 60 | AI86: 100 | AJ86: 129.2436371 | AK86: 126.6681084 | AL86: 44.9494029 | AM86: 117.3777121 | AN86: -3.869065384 | AO86: 135.8414017 | AP86: 102.4951054 | AQ86: 97.43700648 | AR86: 49.10763671 | AS86: 136.9406641 | AT86: 43.07336141 | AU86: 149.4292047 | AV86: 94.53693457 | AW86: 129.9208075 | AX86: 30.50090506 | AY86: 158.8073843 | AZ86: 50.23409368 | BA86: 139.658967

Sheet fire works (hidden)
A1: 1
